fUST/lending_fUST_20260523
["ID","MTS","AMOUNT","RATE_DAILY","PERIOD"]
[422854220,1779526243000,-500.0,8.767e-05,2]
[422854224,1779526243000,-224.71185809,8.767e-05,2]
[422854218,1779526243000,-500.0,8.767e-05,2]
[422854228,1779526243000,-500.0,8.767e-05,2]
[422854229,1779526243000,-500.0,8.767e-05,2]
[422854236,1779526243000,-500.0,8.767e-05,2]
[422854233,1779526243000,-500.0,8.767e-05,2]
[422854231,1779526243000,-500.0,8.767e-05,2]
[422854222,1779526243000,-500.0,8.767e-05,2]
[422854248,1779526243000,-500.0,8.767e-05,2]
[422854246,1779526243000,-500.0,8.767e-05,2]
[422854263,1779526243000,-500.0,8.767e-05,2]
[422854273,1779526243000,-500.0,8.767e-05,2]
[422854275,1779526243000,-1654.99,8.767e-05,2]
[422854261,1779526243000,-500.0,8.767e-05,2]
[422854271,1779526243000,-1110.27,8.767e-05,2]
[422854257,1779526243000,-500.0,8.767e-05,2]
[422854269,1779526243000,-500.0,8.767e-05,2]
[422854253,1779526243000,-500.0,8.767e-05,2]
[422854249,1779526243000,-509.95,8.767e-05,2]
[422854251,1779526243000,-500.0,8.767e-05,2]
[422854244,1779526243000,-500.0,8.767e-05,2]
[422854241,1779526243000,-500.0,8.767e-05,2]
[422854256,1779526243000,-500.0,8.767e-05,2]
[422854428,1779526244000,-500.0,9.041e-05,2]
[422854426,1779526244000,-500.0,9.041e-05,2]
[422854430,1779526244000,-500.0,9.041e-05,2]
[422854418,1779526244000,-500.0,9.041e-05,2]
[422854422,1779526244000,-500.0,9.041e-05,2]
[422854420,1779526244000,-538.38457837,9.041e-05,2]
[422854416,1779526244000,-500.0,9.041e-05,2]
[422854410,1779526244000,-500.0,9.041e-05,2]
[422854412,1779526244000,-500.0,9.041e-05,2]
[422854408,1779526244000,-500.0,9.041e-05,2]
[422854406,1779526244000,-500.0,9.041e-05,2]
[422854404,1779526244000,-500.0,9.041e-05,2]
[422854399,1779526244000,-2312.2534,9.041e-05,2]
[422854414,1779526244000,-432.7925016,9.041e-05,2]
[422854424,1779526244000,-500.0,9.041e-05,2]
[422854464,1779526244000,-500.0,9.041e-05,2]
[422854432,1779526244000,-500.0,9.041e-05,2]
[422854401,1779526244000,-500.0,9.041e-05,2]
[422854460,1779526244000,-500.0,9.041e-05,2]
[422854458,1779526244000,-500.0,9.041e-05,2]
[422854445,1779526244000,-500.0,9.041e-05,2]
[422854450,1779526244000,-832.66,9.041e-05,2]
[422854456,1779526244000,-840.85,9.041e-05,2]
[422854437,1779526244000,-500.0,9.041e-05,2]
[422854449,1779526244000,-500.0,9.041e-05,2]
[422854443,1779526244000,-500.0,9.041e-05,2]
[422854452,1779526244000,-500.0,9.041e-05,2]
[422854447,1779526244000,-500.0,9.041e-05,2]
[422854441,1779526244000,-500.0,9.041e-05,2]
[422854434,1779526244000,-500.0,9.041e-05,2]
[422854435,1779526244000,-500.0,9.041e-05,2]
[422854454,1779526244000,-500.0,9.041e-05,2]
[422854393,1779526244000,-245.0782311,9e-05,2]
[422854368,1779526244000,-745.92,8.767e-05,2]
[422854395,1779526244000,-246.07056975,9e-05,2]
[422854361,1779526244000,-500.0,8.767e-05,2]
[422854357,1779526244000,-2723.21,8.767e-05,2]
[422854355,1779526244000,-500.0,8.767e-05,2]
[422854348,1779526244000,-1174.78,8.767e-05,2]
[422854352,1779526244000,-306.93935152,8.767e-05,2]
[422854346,1779526244000,-13928.37,8.767e-05,2]
[422854359,1779526244000,-721.4,8.767e-05,2]
[422854350,1779526244000,-1146.72,8.767e-05,2]
[422854344,1779526244000,-2132.37,8.767e-05,2]
[422854342,1779526244000,-529.51,8.767e-05,2]
[422854340,1779526244000,-575.57,8.767e-05,2]
[422854338,1779526244000,-500.0,8.767e-05,2]
[422854336,1779526244000,-500.0,8.767e-05,2]
[422854334,1779526244000,-833.18,8.767e-05,2]
[422854353,1779526244000,-857.33,8.767e-05,2]
[422854391,1779526244000,-948.75219357,8.911e-05,7]
[422854363,1779526244000,-532.49,8.767e-05,2]
[422854367,1779526244000,-500.0,8.767e-05,2]
[422854403,1779526244000,-500.0,9.041e-05,2]
[422854397,1779526244000,-1000.0,9.011e-05,2]
[422854389,1779526244000,-1095.15433011,8.911e-05,7]
[422854387,1779526244000,-246.07056975,8.9e-05,2]
[422854385,1779526244000,-245.0782311,8.9e-05,2]
[422854382,1779526244000,-245.0782311,8.8e-05,2]
[422854365,1779526244000,-500.0,8.767e-05,2]
[422854384,1779526244000,-246.07056975,8.8e-05,2]
[422854374,1779526244000,-500.0,8.767e-05,2]
[422854372,1779526244000,-500.0,8.767e-05,2]
[422854370,1779526244000,-500.0,8.767e-05,2]
[422854378,1779526244000,-2174.04,8.767e-05,2]
[422854376,1779526244000,-610.7,8.767e-05,2]
[422854466,1779526244000,-500.0,9.041e-05,2]
[422854380,1779526244000,-500.0,8.767e-05,2]
[422854462,1779526244000,-500.0,9.041e-05,2]
[422854439,1779526244000,-500.0,9.041e-05,2]
[422854468,1779526244000,-221.79537452,9.041e-05,2]
[422854556,1779526244000,-520.06,9.041e-05,2]
[422854558,1779526244000,-836.84,9.041e-05,2]
[422854568,1779526244000,-500.0,9.041e-05,2]
[422854567,1779526244000,-500.0,9.041e-05,2]
[422854555,1779526244000,-756.83,9.041e-05,2]
[422854570,1779526244000,-2074.76,9.041e-05,2]
[422854561,1779526244000,-569.83,9.041e-05,2]
[422854563,1779526244000,-2917.71,9.041e-05,2]
[422854553,1779526244000,-500.0,9.041e-05,2]
[422854551,1779526244000,-500.0,9.041e-05,2]
[422854549,1779526244000,-500.0,9.041e-05,2]
[422854545,1779526244000,-875.63,9.041e-05,2]
[422854547,1779526244000,-2548.83,9.041e-05,2]
[422854543,1779526244000,-500.0,9.041e-05,2]
[422854565,1779526244000,-1666.23,9.041e-05,2]
[422854541,1779526244000,-500.0,9.041e-05,2]
[422854560,1779526244000,-1205.29,9.041e-05,2]
[422854577,1779526244000,-1038.68,9.041e-05,2]
[422854599,1779526244000,-2723.21,9.041e-05,2]
[422854598,1779526244000,-500.0,9.041e-05,2]
[422854594,1779526244000,-1146.72,9.041e-05,2]
[422854596,1779526244000,-857.33,9.041e-05,2]
[422854592,1779526244000,-1174.78,9.041e-05,2]
[422854470,1779526244000,-500.0,9.041e-05,2]
[422854572,1779526244000,-500.0,9.041e-05,2]
[422854585,1779526244000,-575.57,9.041e-05,2]
[422854588,1779526244000,-2132.37,9.041e-05,2]
[422854579,1779526244000,-833.18,9.041e-05,2]
[422854581,1779526244000,-500.0,9.041e-05,2]
[422854583,1779526244000,-500.0,9.041e-05,2]
[422854575,1779526244000,-872.64,9.041e-05,2]
[422854574,1779526244000,-500.0,9.041e-05,2]
[422854587,1779526244000,-529.51,9.041e-05,2]
[422854540,1779526244000,-500.0,9.041e-05,2]
[422854590,1779526244000,-13928.37,9.041e-05,2]
[422854534,1779526244000,-500.0,9.041e-05,2]
[422854498,1779526244000,-500.0,9.041e-05,2]
[422854502,1779526244000,-500.0,9.041e-05,2]
[422854496,1779526244000,-509.95,9.041e-05,2]
[422854494,1779526244000,-500.0,9.041e-05,2]
[422854493,1779526244000,-500.0,9.041e-05,2]
[422854491,1779526244000,-500.0,9.041e-05,2]
[422854500,1779526244000,-500.0,9.041e-05,2]
[422854488,1779526244000,-500.0,9.041e-05,2]
[422854480,1779526244000,-500.0,9.041e-05,2]
[422854474,1779526244000,-500.0,9.041e-05,2]
[422854472,1779526244000,-500.0,9.041e-05,2]
[422854486,1779526244000,-500.0,9.041e-05,2]
[422854477,1779526244000,-500.0,9.041e-05,2]
[422854538,1779526244000,-500.0,9.041e-05,2]
[422854475,1779526244000,-500.0,9.041e-05,2]
[422854506,1779526244000,-500.0,9.041e-05,2]
[422854483,1779526244000,-500.0,9.041e-05,2]
[422854508,1779526244000,-500.0,9.041e-05,2]
[422854514,1779526244000,-500.0,9.041e-05,2]
[422854532,1779526244000,-535.56,9.041e-05,2]
[422854529,1779526244000,-828.68,9.041e-05,2]
[422854536,1779526244000,-500.0,9.041e-05,2]
[422854525,1779526244000,-858.87,9.041e-05,2]
[422854523,1779526244000,-500.0,9.041e-05,2]
[422854519,1779526244000,-500.0,9.041e-05,2]
[422854530,1779526244000,-500.0,9.041e-05,2]
[422854517,1779526244000,-1110.27,9.041e-05,2]
[422854504,1779526244000,-500.0,9.041e-05,2]
[422854521,1779526244000,-1654.99,9.041e-05,2]
[422854510,1779526244000,-500.0,9.041e-05,2]
[422854527,1779526244000,-500.0,9.041e-05,2]
[422854516,1779526244000,-525.55695321,9.041e-05,2]
[422854512,1779526244000,-500.0,9.041e-05,2]
[422854688,1779526245000,-440.36469939,9.315e-05,2]
[422854663,1779526245000,-500.0,9.315e-05,2]
[422854668,1779526245000,-500.0,9.315e-05,2]
[422854670,1779526245000,-500.0,9.315e-05,2]
[422854674,1779526245000,-500.0,9.315e-05,2]
[422854684,1779526245000,-840.85,9.315e-05,2]
[422854686,1779526245000,-500.0,9.315e-05,2]
[422854672,1779526245000,-238.64031516,9.315e-05,2]
[422854676,1779526245000,-500.0,9.315e-05,2]
[422854678,1779526245000,-832.66,9.315e-05,2]
[422854680,1779526245000,-500.0,9.315e-05,2]
[422854665,1779526245000,-500.0,9.315e-05,2]
[422854682,1779526245000,-500.0,9.315e-05,2]
[422854698,1779526245000,-500.0,9.315e-05,2]
[422854692,1779526245000,-500.0,9.315e-05,2]
[422854694,1779526245000,-500.0,9.315e-05,2]
[422854704,1779526245000,-500.0,9.315e-05,2]
[422854706,1779526245000,-500.0,9.315e-05,2]
[422854708,1779526245000,-500.0,9.315e-05,2]
[422854710,1779526245000,-500.0,9.315e-05,2]
[422854696,1779526245000,-500.0,9.315e-05,2]
[422854700,1779526245000,-500.0,9.315e-05,2]
[422854702,1779526245000,-500.0,9.315e-05,2]
[422854711,1779526245000,-500.0,9.315e-05,2]
[422854713,1779526245000,-500.0,9.315e-05,2]
[422854659,1779526245000,-500.0,9.315e-05,2]
[422854715,1779526245000,-500.0,9.315e-05,2]
[422854690,1779526245000,-500.0,9.315e-05,2]
[422854655,1779526245000,-500.0,9.315e-05,2]
[422854622,1779526245000,-605.77394327,9.315e-05,2]
[422854661,1779526245000,-500.0,9.315e-05,2]
[422854717,1779526245000,-500.0,9.315e-05,2]
[422854601,1779526245000,-721.4,9.041e-05,2]
[422854603,1779526245000,-500.0,9.041e-05,2]
[422854607,1779526245000,-500.0,9.041e-05,2]
[422854605,1779526245000,-532.49,9.041e-05,2]
[422854611,1779526245000,-278.27880041,9.041e-05,2]
[422854609,1779526245000,-500.0,9.041e-05,2]
[422854613,1779526245000,-745.92,9.041e-05,2]
[422854619,1779526245000,-500.0,9.041e-05,2]
[422854617,1779526245000,-610.7,9.041e-05,2]
[422854616,1779526245000,-500.0,9.041e-05,2]
[422854618,1779526245000,-2174.04,9.041e-05,2]
[422854615,1779526245000,-500.0,9.041e-05,2]
[422854621,1779526245000,-2312.2534,9.315e-05,2]
[422854620,1779526245000,-10000.0,9.123e-05,2]
[422854623,1779526245000,-609.97168117,9.315e-05,2]
[422854625,1779526245000,-500.0,9.315e-05,2]
[422854627,1779526245000,-500.0,9.315e-05,2]
[422854629,1779526245000,-500.0,9.315e-05,2]
[422854638,1779526245000,-500.0,9.315e-05,2]
[422854640,1779526245000,-500.0,9.315e-05,2]
[422854642,1779526245000,-500.0,9.315e-05,2]
[422854644,1779526245000,-500.0,9.315e-05,2]
[422854646,1779526245000,-500.0,9.315e-05,2]
[422854648,1779526245000,-500.0,9.315e-05,2]
[422854651,1779526245000,-500.0,9.315e-05,2]
[422854657,1779526245000,-500.0,9.315e-05,2]
[422854653,1779526245000,-500.0,9.315e-05,2]
[422854719,1779526245000,-509.95,9.315e-05,2]
[422854800,1779526245000,-2132.37,9.315e-05,2]
[422854729,1779526245000,-500.0,9.315e-05,2]
[422854773,1779526245000,-500.0,9.315e-05,2]
[422854775,1779526245000,-875.63,9.315e-05,2]
[422854783,1779526245000,-836.84,9.315e-05,2]
[422854784,1779526245000,-1205.29,9.315e-05,2]
[422854782,1779526245000,-520.06,9.315e-05,2]
[422854785,1779526245000,-569.83,9.315e-05,2]
[422854786,1779526245000,-2917.71,9.315e-05,2]
[422854792,1779526245000,-500.0,9.315e-05,2]
[422854790,1779526245000,-2074.76,9.315e-05,2]
[422854787,1779526245000,-1666.23,9.315e-05,2]
[422854791,1779526245000,-500.0,9.315e-05,2]
[422854789,1779526245000,-500.0,9.315e-05,2]
[422854793,1779526245000,-872.64,9.315e-05,2]
[422854788,1779526245000,-500.0,9.315e-05,2]
[422854794,1779526245000,-1038.68,9.315e-05,2]
[422854796,1779526245000,-500.0,9.315e-05,2]
[422854797,1779526245000,-500.0,9.315e-05,2]
[422854798,1779526245000,-575.57,9.315e-05,2]
[422854799,1779526245000,-529.51,9.315e-05,2]
[422854807,1779526245000,-2723.21,9.315e-05,2]
[422854808,1779526245000,-721.4,9.315e-05,2]
[422854802,1779526245000,-1174.78,9.315e-05,2]
[422854801,1779526245000,-13928.37,9.315e-05,2]
[422854803,1779526245000,-1146.72,9.315e-05,2]
[422854804,1779526245000,-857.33,9.315e-05,2]
[422854727,1779526245000,-583.95404397,9.315e-05,2]
[422854806,1779526245000,-500.0,9.315e-05,2]
[422854780,1779526245000,-500.0,9.315e-05,2]
[422854771,1779526245000,-500.0,9.315e-05,2]
[422854795,1779526245000,-833.18,9.315e-05,2]
[422854779,1779526245000,-500.0,9.315e-05,2]
[422854731,1779526245000,-500.0,9.315e-05,2]
[422854721,1779526245000,-500.0,9.315e-05,2]
[422854769,1779526245000,-500.0,9.315e-05,2]
[422854733,1779526245000,-500.0,9.315e-05,2]
[422854723,1779526245000,-500.0,9.315e-05,2]
[422854725,1779526245000,-500.0,9.315e-05,2]
[422854735,1779526245000,-471.022274,9.315e-05,2]
[422854737,1779526245000,-471.022274,9.315e-05,2]
[422854738,1779526245000,-500.0,9.315e-05,2]
[422854741,1779526245000,-500.0,9.315e-05,2]
[422854751,1779526245000,-500.0,9.315e-05,2]
[422854740,1779526245000,-471.022274,9.315e-05,2]
[422854753,1779526245000,-858.87,9.315e-05,2]
[422854755,1779526245000,-500.0,9.315e-05,2]
[422854739,1779526245000,-151.0,9.315e-05,2]
[422854759,1779526245000,-500.0,9.315e-05,2]
[422854777,1779526245000,-2548.83,9.315e-05,2]
[422854767,1779526245000,-500.0,9.315e-05,2]
[422854778,1779526245000,-500.0,9.315e-05,2]
[422854765,1779526245000,-500.0,9.315e-05,2]
[422854781,1779526245000,-756.83,9.315e-05,2]
[422854761,1779526245000,-535.56,9.315e-05,2]
[422854763,1779526245000,-500.0,9.315e-05,2]
[422854749,1779526245000,-1654.99,9.315e-05,2]
[422854747,1779526245000,-500.0,9.315e-05,2]
[422854743,1779526245000,-471.022274,9.315e-05,2]
[422854757,1779526245000,-828.68,9.315e-05,2]
[422854745,1779526245000,-1110.27,9.315e-05,2]
[422854856,1779526246000,-637.03314019,9.589e-05,2]
[422854858,1779526246000,-265.47602992,9.589e-05,2]
[422854868,1779526246000,-500.0,9.589e-05,2]
[422854857,1779526246000,-441.79482215,9.589e-05,2]
[422854855,1779526246000,-840.85,9.589e-05,2]
[422854854,1779526246000,-500.0,9.589e-05,2]
[422854845,1779526246000,-500.0,9.589e-05,2]
[422854848,1779526246000,-305.621802,9.589e-05,2]
[422854846,1779526246000,-500.0,9.589e-05,2]
[422854844,1779526246000,-500.0,9.589e-05,2]
[422854849,1779526246000,-305.621802,9.589e-05,2]
[422854870,1779526246000,-517.35106682,9.589e-05,2]
[422854847,1779526246000,-500.0,9.589e-05,2]
[422854850,1779526246000,-832.66,9.589e-05,2]
[422854859,1779526246000,-500.0,9.589e-05,2]
[422854875,1779526246000,-509.95,9.589e-05,2]
[422854866,1779526246000,-500.0,9.589e-05,2]
[422854860,1779526246000,-417.73806168,9.589e-05,2]
[422854862,1779526246000,-500.0,9.589e-05,2]
[422854863,1779526246000,-500.0,9.589e-05,2]
[422854864,1779526246000,-500.0,9.589e-05,2]
[422854872,1779526246000,-500.0,9.589e-05,2]
[422854871,1779526246000,-250.17859059,9.589e-05,2]
[422854873,1779526246000,-500.0,9.589e-05,2]
[422854874,1779526246000,-500.0,9.589e-05,2]
[422854884,1779526246000,-1110.27,9.589e-05,2]
[422854876,1779526246000,-161.53149075,9.589e-05,2]
[422854878,1779526246000,-508.1672781,9.589e-05,2]
[422854877,1779526246000,-343.07067758,9.589e-05,2]
[422854853,1779526246000,-500.0,9.589e-05,2]
[422854861,1779526246000,-500.0,9.589e-05,2]
[422854852,1779526246000,-305.621802,9.589e-05,2]
[422854815,1779526246000,-500.0,9.315e-05,2]
[422854851,1779526246000,-305.621802,9.589e-05,2]
[422854879,1779526246000,-500.0,9.589e-05,2]
[422854810,1779526246000,-532.49,9.315e-05,2]
[422854811,1779526246000,-500.0,9.315e-05,2]
[422854812,1779526246000,-500.0,9.315e-05,2]
[422854814,1779526246000,-500.0,9.315e-05,2]
[422854816,1779526246000,-610.7,9.315e-05,2]
[422854813,1779526246000,-745.92,9.315e-05,2]
[422854817,1779526246000,-2174.04,9.315e-05,2]
[422854822,1779526246000,-1106.87755916,9.534e-05,7]
[422854821,1779526246000,-1277.6800518,9.534e-05,7]
[422854819,1779526246000,-168.76377195,9.476e-05,2]
[422854820,1779526246000,-164.60128837,9.476e-05,2]
[422854818,1779526246000,-500.0,9.315e-05,2]
[422854823,1779526246000,-2312.2534,9.589e-05,2]
[422854824,1779526246000,-500.0,9.589e-05,2]
[422854826,1779526246000,-500.0,9.589e-05,2]
[422854836,1779526246000,-500.0,9.589e-05,2]
[422854843,1779526246000,-246.75770995,9.589e-05,2]
[422854839,1779526246000,-500.0,9.589e-05,2]
[422854841,1779526246000,-500.0,9.589e-05,2]
[422854834,1779526246000,-500.0,9.589e-05,2]
[422854833,1779526246000,-500.0,9.589e-05,2]
[422854832,1779526246000,-255.96992707,9.589e-05,2]
[422854842,1779526246000,-500.0,9.589e-05,2]
[422854829,1779526246000,-500.0,9.589e-05,2]
[422854830,1779526246000,-500.0,9.589e-05,2]
[422854809,1779526246000,-500.0,9.315e-05,2]
[422854828,1779526246000,-500.0,9.589e-05,2]
[422854825,1779526246000,-500.0,9.589e-05,2]
[422854838,1779526246000,-500.0,9.589e-05,2]
[422854827,1779526246000,-252.50841967,9.589e-05,2]
[422854831,1779526246000,-159.65490597,9.589e-05,2]
[422854881,1779526246000,-500.0,9.589e-05,2]
[422854929,1779526246000,-2723.21,9.589e-05,2]
[422854882,1779526246000,-500.0,9.589e-05,2]
[422854923,1779526246000,-2132.37,9.589e-05,2]
[422854916,1779526246000,-872.64,9.589e-05,2]
[422854918,1779526246000,-833.18,9.589e-05,2]
[422854917,1779526246000,-1038.68,9.589e-05,2]
[422854921,1779526246000,-575.57,9.589e-05,2]
[422854922,1779526246000,-529.51,9.589e-05,2]
[422854925,1779526246000,-1174.78,9.589e-05,2]
[422854926,1779526246000,-1146.72,9.589e-05,2]
[422854928,1779526246000,-500.0,9.589e-05,2]
[422854927,1779526246000,-857.33,9.589e-05,2]
[422854930,1779526246000,-721.4,9.589e-05,2]
[422854933,1779526246000,-532.49,9.589e-05,2]
[422854940,1779526246000,-233.4659586,9.589e-05,2]
[422854936,1779526246000,-500.0,9.589e-05,2]
[422854920,1779526246000,-500.0,9.589e-05,2]
[422854932,1779526246000,-500.0,9.589e-05,2]
[422854938,1779526246000,-500.0,9.589e-05,2]
[422854935,1779526246000,-500.0,9.589e-05,2]
[422854937,1779526246000,-745.92,9.589e-05,2]
[422854942,1779526246000,-610.7,9.589e-05,2]
[422854944,1779526246000,-2174.04,9.589e-05,2]
[422854954,1779526246000,-500.0,9.863e-05,2]
[422854956,1779526246000,-351.07246501,9.863e-05,2]
[422854945,1779526246000,-500.0,9.589e-05,2]
[422854951,1779526246000,-500.0,9.863e-05,2]
[422854949,1779526246000,-500.0,9.863e-05,2]
[422854947,1779526246000,-2312.2534,9.863e-05,2]
[422854953,1779526246000,-500.0,9.863e-05,2]
[422854950,1779526246000,-500.0,9.863e-05,2]
[422854883,1779526246000,-500.0,9.589e-05,2]
[422854939,1779526246000,-151.0,9.589e-05,2]
[422854924,1779526246000,-13928.37,9.589e-05,2]
[422854955,1779526246000,-500.0,9.863e-05,2]
[422854919,1779526246000,-500.0,9.589e-05,2]
[422854914,1779526246000,-500.0,9.589e-05,2]
[422854885,1779526246000,-462.74307327,9.589e-05,2]
[422854897,1779526246000,-500.0,9.589e-05,2]
[422854886,1779526246000,-1654.99,9.589e-05,2]
[422854887,1779526246000,-500.0,9.589e-05,2]
[422854888,1779526246000,-858.87,9.589e-05,2]
[422854894,1779526246000,-500.0,9.589e-05,2]
[422854892,1779526246000,-535.56,9.589e-05,2]
[422854896,1779526246000,-500.0,9.589e-05,2]
[422854893,1779526246000,-500.0,9.589e-05,2]
[422854889,1779526246000,-500.0,9.589e-05,2]
[422854890,1779526246000,-828.68,9.589e-05,2]
[422854891,1779526246000,-500.0,9.589e-05,2]
[422854895,1779526246000,-500.0,9.589e-05,2]
[422854898,1779526246000,-500.0,9.589e-05,2]
[422854880,1779526246000,-500.0,9.589e-05,2]
[422854901,1779526246000,-500.0,9.589e-05,2]
[422854899,1779526246000,-875.63,9.589e-05,2]
[422854913,1779526246000,-2074.76,9.589e-05,2]
[422854912,1779526246000,-500.0,9.589e-05,2]
[422854910,1779526246000,-1666.23,9.589e-05,2]
[422854909,1779526246000,-2917.71,9.589e-05,2]
[422854908,1779526246000,-569.83,9.589e-05,2]
[422854906,1779526246000,-836.84,9.589e-05,2]
[422854915,1779526246000,-500.0,9.589e-05,2]
[422854907,1779526246000,-1205.29,9.589e-05,2]
[422854904,1779526246000,-756.83,9.589e-05,2]
[422854902,1779526246000,-589.45526206,9.589e-05,2]
[422854903,1779526246000,-500.0,9.589e-05,2]
[422854900,1779526246000,-2548.83,9.589e-05,2]
[422854911,1779526246000,-500.0,9.589e-05,2]
[422854905,1779526246000,-520.06,9.589e-05,2]
[422855015,1779526247000,-2074.76,9.863e-05,2]
[422855003,1779526247000,-2548.83,9.863e-05,2]
[422855013,1779526247000,-500.0,9.863e-05,2]
[422855002,1779526247000,-875.63,9.863e-05,2]
[422855001,1779526247000,-500.0,9.863e-05,2]
[422855000,1779526247000,-500.0,9.863e-05,2]
[422854993,1779526247000,-828.68,9.863e-05,2]
[422854992,1779526247000,-500.0,9.863e-05,2]
[422854996,1779526247000,-500.0,9.863e-05,2]
[422854997,1779526247000,-500.0,9.863e-05,2]
[422854991,1779526247000,-858.87,9.863e-05,2]
[422855010,1779526247000,-569.83,9.863e-05,2]
[422854999,1779526247000,-500.0,9.863e-05,2]
[422854998,1779526247000,-237.68756776,9.863e-05,2]
[422855009,1779526247000,-1205.29,9.863e-05,2]
[422855011,1779526247000,-2917.71,9.863e-05,2]
[422855004,1779526247000,-500.0,9.863e-05,2]
[422855007,1779526247000,-520.06,9.863e-05,2]
[422855006,1779526247000,-756.83,9.863e-05,2]
[422854994,1779526247000,-628.21667168,9.863e-05,2]
[422855012,1779526247000,-1666.23,9.863e-05,2]
[422855008,1779526247000,-836.84,9.863e-05,2]
[422855017,1779526247000,-364.9394346,9.863e-05,2]
[422855027,1779526247000,-1174.78,9.863e-05,2]
[422855018,1779526247000,-872.64,9.863e-05,2]
[422855028,1779526247000,-1146.72,9.863e-05,2]
[422855029,1779526247000,-857.33,9.863e-05,2]
[422855019,1779526247000,-1038.68,9.863e-05,2]
[422855016,1779526247000,-500.0,9.863e-05,2]
[422855014,1779526247000,-500.0,9.863e-05,2]
[422854990,1779526247000,-500.0,9.863e-05,2]
[422854975,1779526247000,-500.0,9.863e-05,2]
[422854989,1779526247000,-1654.99,9.863e-05,2]
[422854958,1779526247000,-500.0,9.863e-05,2]
[422854957,1779526247000,-500.0,9.863e-05,2]
[422854959,1779526247000,-500.0,9.863e-05,2]
[422854960,1779526247000,-500.0,9.863e-05,2]
[422854962,1779526247000,-500.0,9.863e-05,2]
[422854965,1779526247000,-422.69785005,9.863e-05,2]
[422854972,1779526247000,-500.0,9.863e-05,2]
[422854967,1779526247000,-500.0,9.863e-05,2]
[422854969,1779526247000,-500.0,9.863e-05,2]
[422854968,1779526247000,-832.66,9.863e-05,2]
[422854963,1779526247000,-500.0,9.863e-05,2]
[422854964,1779526247000,-500.0,9.863e-05,2]
[422854973,1779526247000,-501.58985474,9.863e-05,2]
[422854966,1779526247000,-500.0,9.863e-05,2]
[422854995,1779526247000,-535.56,9.863e-05,2]
[422854971,1779526247000,-840.85,9.863e-05,2]
[422854974,1779526247000,-500.0,9.863e-05,2]
[422855020,1779526247000,-833.18,9.863e-05,2]
[422854976,1779526247000,-500.0,9.863e-05,2]
[422854985,1779526247000,-500.0,9.863e-05,2]
[422854984,1779526247000,-500.0,9.863e-05,2]
[422854977,1779526247000,-500.0,9.863e-05,2]
[422854979,1779526247000,-500.0,9.863e-05,2]
[422854978,1779526247000,-500.0,9.863e-05,2]
[422854983,1779526247000,-500.0,9.863e-05,2]
[422854981,1779526247000,-500.0,9.863e-05,2]
[422854987,1779526247000,-500.0,9.863e-05,2]
[422854986,1779526247000,-500.0,9.863e-05,2]
[422854982,1779526247000,-509.95,9.863e-05,2]
[422854988,1779526247000,-1110.27,9.863e-05,2]
[422854970,1779526247000,-500.0,9.863e-05,2]
[422854980,1779526247000,-500.0,9.863e-05,2]
[422855005,1779526247000,-500.0,9.863e-05,2]
[422855021,1779526247000,-500.0,9.863e-05,2]
[422855066,1779526247000,-151.0,0.0001,2]
[422855061,1779526247000,-151.0,0.0001,2]
[422855065,1779526247000,-151.0,0.0001,2]
[422855069,1779526247000,-10149.24466891,0.000101,2]
[422855062,1779526247000,-151.0,0.0001,2]
[422855063,1779526247000,-151.0,0.0001,2]
[422855067,1779526247000,-151.0,0.0001,2]
[422855070,1779526247000,-2312.2534,0.00010136,2]
[422855072,1779526247000,-500.0,0.00010136,2]
[422855071,1779526247000,-500.0,0.00010136,2]
[422855073,1779526247000,-500.0,0.00010136,2]
[422855081,1779526247000,-500.0,0.00010136,2]
[422855082,1779526247000,-500.0,0.00010136,2]